Workbook

Sheet паспорт
A1: ПАТ "УКРТРАНСГАЗ" | G1: ПАСПОРТ ФІЗИКО-ХІМІЧНИХ ПОКАЗНИКІВ ПРИРОДНОГО ГАЗУ № 62
A2: Філія "УМГ "Київтрансгаз" | G2: переданого Лубенським ЛВУМГ та прийнятого ПАТ "Лубнигаз"
A3: Лубенський п/м Лубенське ЛВУМГ | G3: Маршрут № 62
A4: Вимірювальна хіміко-аналітична лабораторія
A5: Свідоцтво № 199-15 чинно до 31.12.2018 р. | K5: по газопроводу " Уренгой-Помари-Ужгород , Прогрес " | V5: за період з | X5: 2017-05-01 | Z5: по | AA5: 2017-05-31
A7: Число місяця | B7: Компонентний склад, % мол. | N7: Фізико-хімічні показники газу обчислені на основі компонентного складу, 101,325 кПа | X7: Температура точки роси за вологою (Р = 3.92 МПа), ºС | Y7: Температура точки роси за вуглеводнями, ºС | Z7: Вміст сірководню, г/м3 | AA7: Вміст меркаптанової сірки, г/м3 | AB7: Вміст механічних домішок, г/м3
N8: Густина абсолютна, кг/м3,при 20 ºС, | O8: Температура вимірювання/згоряння при 20/25°С
B9: метан, С1 | C9: етан, С2 | D9: пропан, С3 | E9: ізо-бутан, і-С4 | F9: н-бутан, н-С4 | G9: нео-пентан, нео-С5 | H9: ізо-пентан, і-С5 | I9: н-пентан, н-С5 | J9: гексани та вищі, С6+ | K9: кисень, О2 | L9: азот, N2 | M9: діоксид вуглецю, CО2 | O9: Теплота згоряння нижча | R9: Теплота згоряння вища | U9: Число Воббе вище
O10: ккал/м3 | P10: МДж/м3 | Q10: кВт⋅год/м3 | R10: ккал/м3 | S10: МДж/м3 | T10: кВт⋅год/м3 | U10: ккал/м3 | V10: МДж/м3 | W10: кВт⋅год/м3
A11: 1 | O11: 8245 | P11: 34.52 | Q11: 9.588888889 | R11: 9141 | S11: 38.27 | T11: 10.63055556 | U11: 11950 | V11: 50.03 | W11: 13.89722222 | AC11: =SUM(B11:M11)+$K$42+$N$42 -> 0
A12: 2 | B12: =[1]Лист1!$D$126 -> 95.3013 | C12: =[1]Лист1!$D$127 -> 2.663 | D12: =[1]Лист1!$D$128 -> 0.854 | E12: =[1]Лист1!$D$129 -> 0.133 | F12: =[1]Лист1!$D$130 -> 0.132 | G12: =[1]Лист1!$D$131 -> 0.0017 | H12: =[1]Лист1!$D$132 -> 0.0254 | I12: =[1]Лист1!$D$133 -> 0.0164 | J12: =[1]Лист1!$D$134 -> 0.012 | K12: =[1]Лист1!$D$135 -> 0.0052 | L12: =[1]Лист1!$D$136 -> 0.647 | M12: =[1]Лист1!$D$137 -> 0.209 | N12: =[1]Лист1!$F$143 -> 0.7056 | O12: =[1]Лист1!$F$145 -> 8252 | P12: =[1]Лист1!$F$144 -> 34.55 | Q12: =[1]Лист1!$F$150 -> 9.597222222 | R12: =[1]Лист1!$F$147 -> 9148 | S12: =[1]Лист1!$F$146 -> 38.3 | T12: =[1]Лист1!$F$151 -> 10.63888889 | U12: =[1]Лист1!$F$149 -> 11952 | V12: =[1]Лист1!$F$148 -> 50.04 | W12: =V12/3.6 -> 13.9 | X12: -22.7 | Y12: -17 | AC12: 100
A13: 3 | O13: =[1]Лист1!$F$145 -> 8252 | P13: =[1]Лист1!$F$144 -> 34.55 | Q13: =[1]Лист1!$F$150 -> 9.597222222 | R13: =[1]Лист1!$F$147 -> 9148 | S13: =[1]Лист1!$F$146 -> 38.3 | T13: =[1]Лист1!$F$151 -> 10.63888889 | U13: =[1]Лист1!$F$149 -> 11952 | V13: =[1]Лист1!$F$148 -> 50.04 | W13: =V13/3.6 -> 13.9 | AC13: 0 | AD13: =IF(AC13=100,"ОК"," ") -> 
A14: 4 | O14: =[1]Лист1!$F$145 -> 8252 | P14: =[1]Лист1!$F$144 -> 34.55 | Q14: =[1]Лист1!$F$150 -> 9.597222222 | R14: =[1]Лист1!$F$147 -> 9148 | S14: =[1]Лист1!$F$146 -> 38.3 | T14: =[1]Лист1!$F$151 -> 10.63888889 | U14: =[1]Лист1!$F$149 -> 11952 | V14: =[1]Лист1!$F$148 -> 50.04 | W14: 13.9 | AC14: 0 | AD14: =IF(AC14=100,"ОК"," ") -> 
A15: 5 | O15: =[1]Лист1!$F$145 -> 8252 | P15: =[1]Лист1!$F$144 -> 34.55 | Q15: =[1]Лист1!$F$150 -> 9.597222222 | R15: =[1]Лист1!$F$147 -> 9148 | S15: =[1]Лист1!$F$146 -> 38.3 | T15: =[1]Лист1!$F$151 -> 10.63888889 | U15: =[1]Лист1!$F$149 -> 11952 | V15: =[1]Лист1!$F$148 -> 50.04 | W15: 13.9 | AB15: відсут. | AC15: 0
A16: 6 | O16: =[1]Лист1!$F$145 -> 8252 | P16: =[1]Лист1!$F$144 -> 34.55 | Q16: =[1]Лист1!$F$150 -> 9.597222222 | R16: =[1]Лист1!$F$147 -> 9148 | S16: =[1]Лист1!$F$146 -> 38.3 | T16: =[1]Лист1!$F$151 -> 10.63888889 | U16: =[1]Лист1!$F$149 -> 11952 | V16: =[1]Лист1!$F$148 -> 50.04 | W16: 13.9 | AC16: 0
A17: 7 | O17: =[1]Лист1!$F$145 -> 8252 | P17: =[1]Лист1!$F$144 -> 34.55 | Q17: =[1]Лист1!$F$150 -> 9.597222222 | R17: =[1]Лист1!$F$147 -> 9148 | S17: =[1]Лист1!$F$146 -> 38.3 | T17: =[1]Лист1!$F$151 -> 10.63888889 | U17: =[1]Лист1!$F$149 -> 11952 | V17: =[1]Лист1!$F$148 -> 50.04 | W17: 13.9 | AC17: 0
A18: 8 | O18: =[1]Лист1!$F$145 -> 8252 | P18: =[1]Лист1!$F$144 -> 34.55 | Q18: =[1]Лист1!$F$150 -> 9.597222222 | R18: =[1]Лист1!$F$147 -> 9148 | S18: =[1]Лист1!$F$146 -> 38.3 | T18: =[1]Лист1!$F$151 -> 10.63888889 | U18: =[1]Лист1!$F$149 -> 11952 | V18: =[1]Лист1!$F$148 -> 50.04 | W18: 13.9 | AC18: 0
A19: 9 | B19: =[2]Лист1!$D$126 -> 95.5784 | C19: =[2]Лист1!$D$127 -> 2.493 | D19: =[2]Лист1!$D$128 -> 0.798 | E19: =[2]Лист1!$D$129 -> 0.124 | F19: =[2]Лист1!$D$130 -> 0.123 | G19: =[2]Лист1!$D$131 -> 0.0016 | H19: =[2]Лист1!$D$132 -> 0.0223 | I19: =[2]Лист1!$D$133 -> 0.0153 | J19: =[2]Лист1!$D$134 -> 0.0114 | K19: =[2]Лист1!$D$135 -> 0.005 | L19: =[2]Лист1!$D$136 -> 0.636 | M19: =[2]Лист1!$D$137 -> 0.192 | N19: =[2]Лист1!$F$143 -> 0.7032 | O19: =[2]Лист1!$F$145 -> 8232 | P19: =[2]Лист1!$F$144 -> 34.47 | Q19: =[2]Лист1!$F$150 -> 9.575 | R19: =[2]Лист1!$F$147 -> 9127 | S19: =[2]Лист1!$F$146 -> 38.21 | T19: =[2]Лист1!$F$151 -> 10.61388889 | U19: =[2]Лист1!$F$149 -> 11944 | V19: =[2]Лист1!$F$148 -> 50.01 | W19: =V19/3.6 -> 13.89166667 | X19: -21.3 | Y19: -18 | AC19: 100 | AD19: ОК
A20: 10 | O20: =[2]Лист1!$F$145 -> 8232 | P20: =[2]Лист1!$F$144 -> 34.47 | Q20: =[2]Лист1!$F$150 -> 9.575 | R20: =[2]Лист1!$F$147 -> 9127 | S20: =[2]Лист1!$F$146 -> 38.21 | T20: =[2]Лист1!$F$151 -> 10.61388889 | U20: =[2]Лист1!$F$149 -> 11944 | V20: =[2]Лист1!$F$148 -> 50.01 | W20: =V20/3.6 -> 13.89166667 | AC20: 0
A21: 11 | O21: =[2]Лист1!$F$145 -> 8232 | P21: =[2]Лист1!$F$144 -> 34.47 | Q21: =[2]Лист1!$F$150 -> 9.575 | R21: =[2]Лист1!$F$147 -> 9127 | S21: =[2]Лист1!$F$146 -> 38.21 | T21: =[2]Лист1!$F$151 -> 10.61388889 | U21: =[2]Лист1!$F$149 -> 11944 | V21: =[2]Лист1!$F$148 -> 50.01 | W21: 13.89166667 | AC21: 0
A22: 12 | O22: =[2]Лист1!$F$145 -> 8232 | P22: =[2]Лист1!$F$144 -> 34.47 | Q22: =[2]Лист1!$F$150 -> 9.575 | R22: =[2]Лист1!$F$147 -> 9127 | S22: =[2]Лист1!$F$146 -> 38.21 | T22: =[2]Лист1!$F$151 -> 10.61388889 | U22: =[2]Лист1!$F$149 -> 11944 | V22: =[2]Лист1!$F$148 -> 50.01 | W22: 13.89166667 | AC22: 0
A23: 13 | O23: =[2]Лист1!$F$145 -> 8232 | P23: =[2]Лист1!$F$144 -> 34.47 | Q23: =[2]Лист1!$F$150 -> 9.575 | R23: =[2]Лист1!$F$147 -> 9127 | S23: =[2]Лист1!$F$146 -> 38.21 | T23: =[2]Лист1!$F$151 -> 10.61388889 | U23: =[2]Лист1!$F$149 -> 11944 | V23: =[2]Лист1!$F$148 -> 50.01 | W23: 13.89166667 | AC23: 0
A24: 14 | O24: =[2]Лист1!$F$145 -> 8232 | P24: =[2]Лист1!$F$144 -> 34.47 | Q24: =[2]Лист1!$F$150 -> 9.575 | R24: =[2]Лист1!$F$147 -> 9127 | S24: =[2]Лист1!$F$146 -> 38.21 | T24: =[2]Лист1!$F$151 -> 10.61388889 | U24: =[2]Лист1!$F$149 -> 11944 | V24: =[2]Лист1!$F$148 -> 50.01 | W24: 13.89166667 | AC24: 0
A25: 15 | B25: =[3]Лист1!$D$126 -> 95.154 | C25: =[3]Лист1!$D$127 -> 2.774 | D25: =[3]Лист1!$D$128 -> 0.883 | E25: =[3]Лист1!$D$129 -> 0.136 | F25: =[3]Лист1!$D$130 -> 0.136 | G25: =[3]Лист1!$D$131 -> 0.0018 | H25: =[3]Лист1!$D$132 -> 0.0249 | I25: =[3]Лист1!$D$133 -> 0.0171 | J25: =[3]Лист1!$D$134 -> 0.013 | K25: =[3]Лист1!$D$135 -> 0.0062 | L25: =[3]Лист1!$D$136 -> 0.626 | M25: =[3]Лист1!$D$137 -> 0.228 | N25: =[3]Лист1!$F$143 -> 0.7069 | O25: =[3]Лист1!$F$145 -> 8264 | P25: =[3]Лист1!$F$144 -> 34.6 | Q25: =[3]Лист1!$F$150 -> 9.611111111 | R25: =[3]Лист1!$F$147 -> 9161 | S25: =[3]Лист1!$F$146 -> 38.36 | T25: =[3]Лист1!$F$151 -> 10.65555556 | U25: =[3]Лист1!$F$149 -> 11959 | V25: =[3]Лист1!$F$148 -> 50.07 | W25: =V25/3.6 -> 13.90833333 | X25: -23.1 | Y25: -16.7 | Z25: 0.0001 | AA25: 0.0003 | AC25: 100 | AD25: ОК
A26: 16 | O26: =[3]Лист1!$F$145 -> 8264 | P26: =[3]Лист1!$F$144 -> 34.6 | Q26: =[3]Лист1!$F$150 -> 9.611111111 | R26: =[3]Лист1!$F$147 -> 9161 | S26: =[3]Лист1!$F$146 -> 38.36 | T26: =[3]Лист1!$F$151 -> 10.65555556 | U26: =[3]Лист1!$F$149 -> 11959 | V26: =[3]Лист1!$F$148 -> 50.07 | W26: =V26/3.6 -> 13.90833333 | AC26: 0
A27: 17 | O27: =[3]Лист1!$F$145 -> 8264 | P27: =[3]Лист1!$F$144 -> 34.6 | Q27: =[3]Лист1!$F$150 -> 9.611111111 | R27: =[3]Лист1!$F$147 -> 9161 | S27: =[3]Лист1!$F$146 -> 38.36 | T27: =[3]Лист1!$F$151 -> 10.65555556 | U27: =[3]Лист1!$F$149 -> 11959 | V27: =[3]Лист1!$F$148 -> 50.07 | W27: 13.90833333 | AC27: 0
A28: 18 | O28: =[3]Лист1!$F$145 -> 8264 | P28: =[3]Лист1!$F$144 -> 34.6 | Q28: =[3]Лист1!$F$150 -> 9.611111111 | R28: =[3]Лист1!$F$147 -> 9161 | S28: =[3]Лист1!$F$146 -> 38.36 | T28: =[3]Лист1!$F$151 -> 10.65555556 | U28: =[3]Лист1!$F$149 -> 11959 | V28: =[3]Лист1!$F$148 -> 50.07 | W28: 13.90833333 | AC28: 0
A29: 19 | O29: =[3]Лист1!$F$145 -> 8264 | P29: =[3]Лист1!$F$144 -> 34.6 | Q29: =[3]Лист1!$F$150 -> 9.611111111 | R29: =[3]Лист1!$F$147 -> 9161 | S29: =[3]Лист1!$F$146 -> 38.36 | T29: =[3]Лист1!$F$151 -> 10.65555556 | U29: =[3]Лист1!$F$149 -> 11959 | V29: =[3]Лист1!$F$148 -> 50.07 | W29: 13.90833333 | AC29: 0
A30: 20 | O30: =[3]Лист1!$F$145 -> 8264 | P30: =[3]Лист1!$F$144 -> 34.6 | Q30: =[3]Лист1!$F$150 -> 9.611111111 | R30: =[3]Лист1!$F$147 -> 9161 | S30: =[3]Лист1!$F$146 -> 38.36 | T30: =[3]Лист1!$F$151 -> 10.65555556 | U30: =[3]Лист1!$F$149 -> 11959 | V30: =[3]Лист1!$F$148 -> 50.07 | W30: 13.90833333 | AC30: 0 | AD30: =IF(AC30=100,"ОК"," ") -> 
A31: 21 | O31: =[3]Лист1!$F$145 -> 8264 | P31: =[3]Лист1!$F$144 -> 34.6 | Q31: =[3]Лист1!$F$150 -> 9.611111111 | R31: =[3]Лист1!$F$147 -> 9161 | S31: =[3]Лист1!$F$146 -> 38.36 | T31: =[3]Лист1!$F$151 -> 10.65555556 | U31: =[3]Лист1!$F$149 -> 11959 | V31: =[3]Лист1!$F$148 -> 50.07 | W31: 13.90833333 | AC31: 0
A32: 22 | B32: =[4]Лист1!$D$126 -> 95.2217 | C32: =[4]Лист1!$D$127 -> 2.743 | D32: =[4]Лист1!$D$128 -> 0.875 | E32: =[4]Лист1!$D$129 -> 0.133 | F32: =[4]Лист1!$D$130 -> 0.129 | G32: =[4]Лист1!$D$131 -> 0.0013 | H32: =[4]Лист1!$D$132 -> 0.0232 | I32: =[4]Лист1!$D$133 -> 0.0157 | J32: =[4]Лист1!$D$134 -> 0.0112 | K32: =[4]Лист1!$D$135 -> 0.0049 | L32: =[4]Лист1!$D$136 -> 0.621 | M32: =[4]Лист1!$D$137 -> 0.221 | N32: =[4]Лист1!$F$143 -> 0.7062 | O32: =[4]Лист1!$F$145 -> 8259 | P32: =[4]Лист1!$F$144 -> 34.58 | Q32: =[4]Лист1!$F$150 -> 9.605555556 | R32: =[4]Лист1!$F$147 -> 9156 | S32: =[4]Лист1!$F$146 -> 38.33 | T32: =[4]Лист1!$F$151 -> 10.64722222 | U32: =[4]Лист1!$F$149 -> 11958 | V32: =[4]Лист1!$F$148 -> 50.06 | W32: =V32/3.6 -> 13.90555556 | X32: -22.3 | Y32: -17.3 | AC32: 100 | AD32: ОК
A33: 23 | O33: =[4]Лист1!$F$145 -> 8259 | P33: =[4]Лист1!$F$144 -> 34.58 | Q33: =[4]Лист1!$F$150 -> 9.605555556 | R33: =[4]Лист1!$F$147 -> 9156 | S33: =[4]Лист1!$F$146 -> 38.33 | T33: =[4]Лист1!$F$151 -> 10.64722222 | U33: =[4]Лист1!$F$149 -> 11958 | V33: =[4]Лист1!$F$148 -> 50.06 | W33: =V33/3.6 -> 13.90555556 | AC33: 0 | AD33: =IF(AC33=100,"ОК"," ") -> 
A34: 24 | O34: =[4]Лист1!$F$145 -> 8259 | P34: =[4]Лист1!$F$144 -> 34.58 | Q34: =[4]Лист1!$F$150 -> 9.605555556 | R34: =[4]Лист1!$F$147 -> 9156 | S34: =[4]Лист1!$F$146 -> 38.33 | T34: =[4]Лист1!$F$151 -> 10.64722222 | U34: =[4]Лист1!$F$149 -> 11958 | V34: =[4]Лист1!$F$148 -> 50.06 | W34: 13.90555556 | AC34: 0
A35: 25 | O35: =[4]Лист1!$F$145 -> 8259 | P35: =[4]Лист1!$F$144 -> 34.58 | Q35: =[4]Лист1!$F$150 -> 9.605555556 | R35: =[4]Лист1!$F$147 -> 9156 | S35: =[4]Лист1!$F$146 -> 38.33 | T35: =[4]Лист1!$F$151 -> 10.64722222 | U35: =[4]Лист1!$F$149 -> 11958 | V35: =[4]Лист1!$F$148 -> 50.06 | W35: 13.90555556 | AC35: 0
A36: 26 | O36: =[4]Лист1!$F$145 -> 8259 | P36: =[4]Лист1!$F$144 -> 34.58 | Q36: =[4]Лист1!$F$150 -> 9.605555556 | R36: =[4]Лист1!$F$147 -> 9156 | S36: =[4]Лист1!$F$146 -> 38.33 | T36: =[4]Лист1!$F$151 -> 10.64722222 | U36: =[4]Лист1!$F$149 -> 11958 | V36: =[4]Лист1!$F$148 -> 50.06 | W36: 13.90555556 | AC36: 0
A37: 27 | O37: =[4]Лист1!$F$145 -> 8259 | P37: =[4]Лист1!$F$144 -> 34.58 | Q37: =[4]Лист1!$F$150 -> 9.605555556 | R37: =[4]Лист1!$F$147 -> 9156 | S37: =[4]Лист1!$F$146 -> 38.33 | T37: =[4]Лист1!$F$151 -> 10.64722222 | U37: =[4]Лист1!$F$149 -> 11958 | V37: =[4]Лист1!$F$148 -> 50.06 | W37: 13.90555556 | AC37: 0
A38: 28 | O38: =[4]Лист1!$F$145 -> 8259 | P38: =[4]Лист1!$F$144 -> 34.58 | Q38: =[4]Лист1!$F$150 -> 9.605555556 | R38: =[4]Лист1!$F$147 -> 9156 | S38: =[4]Лист1!$F$146 -> 38.33 | T38: =[4]Лист1!$F$151 -> 10.64722222 | U38: =[4]Лист1!$F$149 -> 11958 | V38: =[4]Лист1!$F$148 -> 50.06 | W38: 13.90555556 | AC38: 0
A39: 29 | B39: =[5]Лист1!$D$126 -> 95.426 | C39: =[5]Лист1!$D$127 -> 2.55 | D39: =[5]Лист1!$D$128 -> 0.861 | E39: =[5]Лист1!$D$129 -> 0.133 | F39: =[5]Лист1!$D$130 -> 0.132 | G39: =[5]Лист1!$D$131 -> 0.0015 | H39: =[5]Лист1!$D$132 -> 0.0236 | I39: =[5]Лист1!$D$133 -> 0.0162 | J39: =[5]Лист1!$D$134 -> 0.0114 | K39: =[5]Лист1!$D$135 -> 0.0063 | L39: =[5]Лист1!$D$136 -> 0.645 | M39: =[5]Лист1!$D$137 -> 0.194 | N39: =[5]Лист1!$F$143 -> 0.7047 | O39: =[5]Лист1!$F$145 -> 8246 | P39: =[5]Лист1!$F$144 -> 34.53 | Q39: =[5]Лист1!$F$150 -> 9.591666667 | R39: =[5]Лист1!$F$147 -> 9142 | S39: =[5]Лист1!$F$146 -> 38.28 | T39: =[5]Лист1!$F$151 -> 10.63333333 | U39: =[5]Лист1!$F$149 -> 11952 | V39: =[5]Лист1!$F$148 -> 50.04 | W39: =V39/3.6 -> 13.9 | AC39: 100 | AD39: ОК
A40: 30 | O40: =[5]Лист1!$F$145 -> 8246 | P40: =[5]Лист1!$F$144 -> 34.53 | Q40: =[5]Лист1!$F$150 -> 9.591666667 | R40: =[5]Лист1!$F$147 -> 9142 | S40: =[5]Лист1!$F$146 -> 38.28 | T40: =[5]Лист1!$F$151 -> 10.63333333 | U40: =[5]Лист1!$F$149 -> 11952 | V40: =[5]Лист1!$F$148 -> 50.04 | W40: =V40/3.6 -> 13.9 | AC40: 0
A41: 31 | O41: =[5]Лист1!$F$145 -> 8246 | P41: =[5]Лист1!$F$144 -> 34.53 | Q41: =[5]Лист1!$F$150 -> 9.591666667 | R41: =[5]Лист1!$F$147 -> 9142 | S41: =[5]Лист1!$F$146 -> 38.28 | T41: =[5]Лист1!$F$151 -> 10.63333333 | U41: =[5]Лист1!$F$149 -> 11952 | V41: =[5]Лист1!$F$148 -> 50.04 | W41: 13.9 | AC41: 0
A42: Рівень одоризації відповідає чинним нормативним документам | O42: 8249.114101 | P42: 34.53946649 | Q42: 9.594296249 | R42: 9145.20349 | S42: 38.28866741 | T42: 10.63574095
H43: Середньозважене значення теплоти згоряння:
B46: Головний інженер Лубенського ЛВУМГ Сирота В.П. 01.06.2017 року
C47: Підрозділу підприємства, якому підпорядкована лабораторія | O47: прізвище | R47: підпис | V47: дата
B48: Завідувач лабораторією Лубенського ЛВУМГ Алєксєєнко Н.А. 01.06.2017 року
C49: Лабораторія, де здійснювалось вимірювання газу | O49: прізвище | R49: підпис | V49: дата
B50: Начальник служби ГВ та М Шило О.Є. 01.06.2017 року
C51: Підрозділу, відповідального за облік газу за маршрутом | O51: прізвище | R51: підпис | V51: дата

Sheet розрахунок
A2: Додаток до Паспорту фізико-хімічних показників природного газу по маршруту № 62
A4: Число місяця | B4: Теплота згоряння вища, МДж/м3 | C4: Полтавська область | F4: Загальний обсяг газу, м3
C5: Обсяг газу переданого за добу, м3
C6: ГРС Савинці | D6: ГРС Оржиця | E6: ГРС Вишневе (Оржицький р-н)
A7: 1 | B7: 38.27 | C7: 1543 | D7: 4396.9 | E7: 3795.4 | F7: =SUM(C7:E7) -> 9735.3
A8: 2 | B8: =[1]Лист1!$F$146 -> 38.3 | C8: 1577.2 | D8: 4286.9 | E8: 3895.1 | F8: 9759.2
A9: 3 | B9: =[1]Лист1!$F$146 -> 38.3 | C9: 1479.8 | D9: 3963.2 | E9: 3662.7 | F9: 9105.7
A10: 4 | B10: =[1]Лист1!$F$146 -> 38.3 | C10: 1463 | D10: 4014.6 | E10: 3615.3 | F10: 9092.9
A11: 5 | B11: =[1]Лист1!$F$146 -> 38.3 | C11: 1520.9 | D11: 4016.7 | E11: 3725 | F11: 9262.6
A12: 6 | B12: =[1]Лист1!$F$146 -> 38.3 | C12: 1505 | D12: 4098.5 | E12: 3381 | F12: 8984.5
A13: 7 | B13: =[1]Лист1!$F$146 -> 38.3 | C13: 1369.9 | D13: 3738.2 | E13: 3429 | F13: 8537.1
A14: 8 | B14: =[1]Лист1!$F$146 -> 38.3 | C14: 1439 | D14: 3904.3 | E14: 3573.2 | F14: 8916.5
A15: 9 | B15: =[2]Лист1!$F$146 -> 38.21 | C15: 1662.8 | D15: 4321.2 | E15: 4190.7 | F15: 10174.7
A16: 10 | B16: =[2]Лист1!$F$146 -> 38.21 | C16: 2669.4 | D16: 6811.3 | E16: 6211.6 | F16: 15692.3
A17: 11 | B17: =[2]Лист1!$F$146 -> 38.21 | C17: 2769 | D17: 7464.6 | E17: 6224.8 | F17: 16458.4
A18: 12 | B18: =[2]Лист1!$F$146 -> 38.21 | C18: 3778.4 | D18: 10647.9 | E18: 7052.7 | F18: 21479
A19: 13 | B19: =[2]Лист1!$F$146 -> 38.21 | C19: 4271.5 | D19: 11369.9 | E19: 8764 | F19: 24405.4
A20: 14 | B20: =[2]Лист1!$F$146 -> 38.21 | C20: 3353.6 | D20: 9529.8 | E20: 7179.5 | F20: 20062.9
A21: 15 | B21: =[3]Лист1!$F$146 -> 38.36 | C21: 1878 | D21: 5421.5 | E21: 4666.6 | F21: 11966.1
A22: 16 | B22: =[3]Лист1!$F$146 -> 38.36 | C22: 1556.7 | D22: 4331.9 | E22: 3884.8 | F22: 9773.4
A23: 17 | B23: =[3]Лист1!$F$146 -> 38.36 | C23: 1790.3 | D23: 4834.9 | E23: 4210.8 | F23: 10836
A24: 18 | B24: =[3]Лист1!$F$146 -> 38.36 | C24: 1927.5 | D24: 5473 | E24: 4756.9 | F24: 12157.4
A25: 19 | B25: =[3]Лист1!$F$146 -> 38.36 | C25: 1878.4 | D25: 5379.8 | E25: 4704.5 | F25: 11962.7
A26: 20 | B26: =[3]Лист1!$F$146 -> 38.36 | C26: 1870.1 | D26: 5838.7 | E26: 4750.1 | F26: 12458.9
A27: 21 | B27: =[3]Лист1!$F$146 -> 38.36 | C27: 1918 | D27: 5301.5 | E27: 4533.7 | F27: 11753.2
A28: 22 | B28: =[4]Лист1!$F$146 -> 38.33 | C28: 1457.6 | D28: 4333 | E28: 3697.4 | F28: 9488
A29: 23 | B29: =[4]Лист1!$F$146 -> 38.33 | C29: 1261.8 | D29: 3794.7 | E29: 3326.1 | F29: 8382.6
A30: 24 | B30: =[4]Лист1!$F$146 -> 38.33 | C30: 1207.4 | D30: 3485 | E30: 2909.2 | F30: 7601.6
A31: 25 | B31: =[4]Лист1!$F$146 -> 38.33 | C31: 1244.6 | D31: 3549.9 | E31: 3094.5 | F31: 7889
A32: 26 | B32: =[4]Лист1!$F$146 -> 38.33 | C32: 1204.9 | D32: 3291.6 | E32: 3049.2 | F32: 7545.7
A33: 27 | B33: =[4]Лист1!$F$146 -> 38.33 | C33: 1398.4 | D33: 3711.4 | E33: 3514.4 | F33: 8624.2
A34: 28 | B34: =[4]Лист1!$F$146 -> 38.33 | C34: 1364.9 | D34: 3730.5 | E34: 3350.4 | F34: 8445.8
A35: 29 | B35: =[5]Лист1!$F$146 -> 38.28 | C35: 1182.1 | D35: 3344.6 | E35: 2971.1 | F35: 7497.8
A36: 30 | B36: =[5]Лист1!$F$146 -> 38.28 | C36: 1160.5 | D36: 3389.8 | E36: 2813.3 | F36: 7363.6
A37: 31 | B37: =[5]Лист1!$F$146 -> 38.28 | C37: 1088.1 | D37: 3096.8 | E37: 2856.6 | F37: 7041.5
A38: Загальний обсяг газу, м3 | C38: =SUM(C7:C37) -> 55791.8 | D38: =SUM(D7:D37) -> 154872.6 | E38: =SUM(E7:E37) -> 131789.6 | F38: =SUM(F7:F37) -> 342454
A39: Енергія, МДж | C39: =SUMPRODUCT(B7:B37,C7:C37) -> 2136088.941 | D39: =SUMPRODUCT(B7:B37,D7:D37) -> 5929750.787 | E39: =SUMPRODUCT(B7:B37,E7:E37) -> 5046267.581 | F39: =SUMPRODUCT(B7:B37,F7:F37) -> 13112107.31
A40: Теплота згоряння (середньозважене значення за місяць), МДж/м³ | C40: 38.28679019 | D40: 38.2879269 | E40: 38.29033233 | F40: 38.28866741
A41: Теплота згоряння (середньозважене значення за місяць), ккал/м³ | C41: 9144.642861 | D41: 9144.914359 | E41: 9145.488886 | F41: 9145.091227
A42: Теплота згоряння (середньозважене значення за місяць), кВт*год./м³ | C42: 10.6352195 | D42: 10.63553525 | E42: 10.63620342 | F42: 10.63574095

Sheet додаток
A2: Додаток до Паспорту фізико-хімічних показників природного газу № 62
A4: Область | B4: ГРС, прямий споживач | C4: Cередньозважене значення вищої теплоти згоряння
C5: МДж/м³ | D5: ккал/м³ | E5: кВт*год./м³
A6: Полтавська область | B6: ГРС Савинці | C6: 38.28679019 | D6: 9144.642861 | E6: 10.6352195
B7: ГРС Оржиця | C7: 38.2879269 | D7: 9144.914359 | E7: 10.63553525
B8: ГРС Вишневе (Оржицького р-ну) | C8: 38.29033233 | D8: 9145.488886 | E8: 10.63620342
A9: Середньозважене значення вищої теплоти згоряння по маршруту № 62 | C9: 38.28866741 | D9: 9145.091227 | E9: 10.63574095
A13: Головний інженер Лубенського ЛВУМГ Сирота В.П. | F13: 01.06.2017 року
A14: Підрозділу підприємства, якому підпорядкована лабораторія | D14: прізвище | E14: підпис | F14: дата
A15: Завідувач лабораторією Лубенського ЛВУМГ Алєксєєнко Н.А. | F15: =F13 -> 01.06.2017 року
A16: Лабораторія, де здійснювалось вимірювання газу | D16: прізвище | E16: підпис | F16: дата
A17: Начальник служби ГВ та М Шило О.Є | F17: =F13 -> 01.06.2017 року
A18: Підрозділу, відповідального за облік газу за маршрутом | D18: прізвище | E18: підпис | F18: дата

Sheet variablesList (hidden)
A1: 3 | B1: x:\gaysin | C1: 10, 11, 24, 25, 127, 128, 132, 180, 207, 215 | D1: x:\
B2: x:\Illinci
B3: x:\Talne
